bitfinex-derivatives/quotes_ETHF0:USTF0_20250403
["timestamp","ask_amount","ask_price","bid_price","bid_amount"]
[1743639273852,1.10583,1809.1,1809.0,6.5192254]
[1743639274448,1.10581,1809.2,1809.1,1.10577]
[1743639274746,2.62421,1809.2,1809.1,1.10577]
[1743639275949,1.10583,1809.1,1809.0,3.2078]
[1743639276156,2.62423,1809.1,1809.0,3.2078]
[1743639276647,3.37253,1809.1,1809.0,3.2078]
[1743639277058,1.10589,1809.0,1808.8,3.2078]
[1743639277263,2.62645,1808.9,1808.8,3.2078]
[1743639278347,2.62645,1808.9,1808.8,4.31381]
[1743639278948,2.62645,1808.9,1808.8,3.2078]
[1743639280155,2.62645,1808.9,1808.7,0.00553098]
[1743639280156,1.10601,1808.8,1808.7,0.00553098]
[1743639280350,3.30531,1808.8,1808.7,0.00553098]
[1743639280949,1.10607,1808.7,1808.6,3.20503452]
[1743639281145,1.10607,1808.7,1808.1,2.76608]
[1743639281146,1.10619,1808.5,1808.4,4.31405]
[1743639281360,1.10618,1808.6,1808.5,1.10616]
[1743639281557,2.59348,1808.6,1808.5,1.10616]
[1743639281851,0.712,1808.8,1808.7,1.10607]
[1743639282054,5.43299,1808.9,1808.8,1.10597]
[1743639282356,1.10601,1808.8,1808.7,5.76782]
[1743639282553,1.10607,1808.7,1808.6,0.00829646]
[1743639283053,5.11887,1808.7,1808.6,6.46e-06]
[1743639286551,9.44687,1808.7,1808.6,6.46e-06]
[1743639289556,55.30768,1808.6,1807.5,9.0318]
[1743639289856,55.30768,1808.6,1807.5,3.2078]
[1743639289857,1.10674,1807.6,1807.5,3.2078]
[1743639290062,1.10674,1807.6,1807.5,4.7253]
[1743639290259,1.10674,1807.6,1807.5,5.83211]
[1743639291257,2.76687,1807.6,1807.2,3.2078]
[1743639291458,1.10703,1807.2,1807.0,4.7253]
[1743639291662,1.10703,1807.2,1807.1,1.10704]
[1743639292458,1.10691,1807.4,1807.1,5.824]
[1743639292660,1.11499646,1807.7,1807.2,6.1211]
[1743639292960,0.00829646,1807.7,1807.6,1.10674]
[1743639293164,1.10656,1807.9,1807.8,1.10657]
[1743639293366,1.10653,1808.0,1807.9,1.10653]
[1743639293566,1.10653,1808.0,1807.9,2.58043]
[1743639293761,1.10653,1808.0,1807.9,1.4739]
[1743639294659,1.10656,1807.9,1807.8,9.04009646]
[1743639294861,2.54036,1807.9,1807.8,9.04009646]
[1743639295558,1.10656,1807.9,1807.8,9.04009646]
[1743639296965,1.10656,1807.9,1807.8,3.21609646]
[1743639297163,2.54036,1807.9,1807.8,3.21609646]
[1743639297566,1.10656,1807.9,1807.8,0.00829646]
[1743639297867,2.54036,1807.9,1807.8,0.00829646]
[1743639298960,2.54036,1807.9,1807.8,1.11491646]
[1743639299160,2.54036,1807.9,1807.8,0.00829646]
[1743639299359,5.43455,1808.0,1807.8,0.00829646]
[1743639299566,5.43455,1808.0,1807.9,1.10656]
[1743639299567,1.10655,1808.0,1807.9,1.10656]
[1743639299766,0.00829646,1808.1,1808.0,1.1065]
[1743639300061,1.11473646,1808.1,1808.0,2.5112]
[1743639300268,1.11473646,1808.1,1808.0,1.4047]
[1743639301666,1.11473646,1808.1,1807.9,5.00506]
[1743639301667,1.1065,1808.0,1807.9,3.8985]
[1743639301875,5.4345,1808.0,1807.9,3.2078]
[1743639302172,1.10656,1807.9,1807.8,0.00829646]
[1743639304772,4.31436,1807.9,1807.8,0.00829646]
[1743639304962,1.10687,1807.4,1807.3,0.7279]
[1743639305168,1.10699,1807.2,1807.1,3.2078]
[1743639305470,1.10711,1807.0,1806.9,3.2078]
[1743639306169,1.1073,1806.7,1806.6,3.9655]
[1743639306367,0.70559646,1807.1,1806.6,5.4161]
[1743639306567,1.10717,1806.9,1806.8,3.2078]
[1743639306968,1.10717,1806.9,1806.8,4.31503]
[1743639307169,1.10717,1806.9,1806.8,3.2078]
[1743639307569,1.10715,1807.0,1806.8,3.2078]
[1743639307773,7.5368,1807.7,1807.0,1.10711]
[1743639308070,7.5368,1807.7,1807.4,1.10682]
[1743639308071,3.2078,1807.7,1807.4,1.10682]
[1743639308377,3.2078,1807.7,1807.3,3.2078]
[1743639308576,1.10681,1807.5,1807.4,2.1152]
[1743639309375,1.10687,1807.4,1807.3,3.21609646]
[1743639309574,1.10687,1807.4,1807.3,4.61469646]
[1743639309871,1.10687,1807.4,1807.3,0.00829646]
[1743639311880,1.82607,1807.4,1807.3,0.00829646]
[1743639312383,1.10687,1807.4,1807.3,0.00829646]
[1743639314470,1.10687,1807.4,1807.3,3.21609646]
[1743639315279,5.43587,1807.4,1807.3,0.00829646]
[1743639315487,8.64367,1807.4,1807.3,0.00829646]
[1743639315678,5.43587,1807.4,1807.3,0.00829646]
[1743639316075,8.64367,1807.4,1807.3,0.00829646]
[1743639316477,5.43587,1807.4,1807.3,0.00829646]
[1743639317883,5.43587,1807.4,1806.9,3.2078]
[1743639317884,1.10711,1807.0,1806.9,3.2078]
[1743639318280,4.328,1807.1,1806.7,1.4982]
[1743639318481,1.10714,1807.0,1806.9,1.10713]
[1743639318681,1.10714,1807.0,1806.9,2.60533]
[1743639318883,3.2078,1807.7,1806.9,2.19204653]
[1743639319083,1.10689,1807.4,1807.3,1.10688]
[1743639319284,2.76672,1807.7,1807.3,1.5229]
[1743639319285,0.00829646,1807.6,1807.3,1.5229]
[1743639319590,0.00829646,1807.6,1807.5,1.10681]
[1743639320185,0.00829646,1807.6,1807.5,4.06463121]
[1743639320384,1.10652,1808.0,1807.6,2.76679]
[1743639320584,0.7545,1808.3,1807.9,3.2078]
[1743639320783,7.82133,1808.5,1808.1,4.3142]
[1743639320784,1.1064,1808.2,1808.1,4.3142]
[1743639321292,5.97299,1808.7,1808.1,3.2078]
[1743639321589,5.97299,1808.7,1808.3,3.2078]
[1743639321590,1.10625,1808.4,1808.3,3.2078]
[1743639321783,1.10632,1808.3,1808.2,4.63e-06]
[1743639321988,7.66462,1808.3,1808.2,4.63e-06]
[1743639322388,1.10644,1808.1,1808.0,0.00829646]
[1743639322999,1.10668,1807.7,1807.6,0.7241]
[1743639323390,1.10674,1807.6,1807.5,3.2078]
[1743639323693,2.61564,1807.6,1807.5,3.2078]
[1743639324803,5.8369,1807.6,1807.1,3.2078]
[1743639324984,1.10687,1807.4,1807.3,1.10691]
[1743639325379,1.10699,1807.2,1807.1,3.2078]
[1743639326589,2.60739,1807.2,1807.1,3.2078]
[1743639326790,1.10705,1807.1,1807.0,0.6885]
[1743639326990,2.60745,1807.1,1807.0,0.6885]
[1743639327385,1.10711,1807.0,1806.9,3.2078]
[1743639327584,2.60751,1807.0,1806.9,3.2078]
[1743639328985,1.10711,1807.0,1806.9,3.2078]
[1743639329385,1.10707,1807.1,1806.9,3.2078]
[1743639329590,5.7911,1807.3,1806.9,4.31495]
[1743639329794,1.10699,1807.2,1807.1,3.2078]
[1743639329987,2.57009,1807.2,1807.1,3.2078]
[1743639330185,0.00829646,1807.5,1807.1,3.2078]
[1743639330186,5.44314646,1807.5,1807.1,3.2078]
[1743639330391,0.00829646,1807.5,1807.4,1.10687]
[1743639331293,0.00829646,1807.5,1807.4,3.60687]
[1743639331488,1.10659,1807.9,1807.8,1.10658]
[1743639331795,1.10668,1807.7,1807.6,10.13851]
[1743639332093,1.10668,1807.7,1807.6,9.0318]
[1743639332989,1.10668,1807.7,1807.6,3.2078]
[1743639333293,2.57438,1807.7,1807.6,3.2078]
[1743639333691,1.10674,1807.6,1807.5,0.00829646]
[1743639333893,2.57444,1807.6,1807.5,0.00829646]
[1743639334295,2.57444,1807.6,1807.5,1.42319646]
[1743639334794,1.10673,1807.7,1807.6,1.10672]
[1743639335000,1.10673,1807.7,1807.6,4.31452]
[1743639335504,2.58486646,1807.8,1807.7,1.10668]
[1743639335701,2.58486646,1807.8,1807.7,2.62768]
[1743639335894,1.10668,1807.7,1807.6,3.89575766]
[1743639336198,2.57658,1807.7,1807.6,3.89575766]
[1743639336398,2.57658,1807.7,1807.6,3.2078]
[1743639336800,1.10674,1807.6,1807.5,0.00829646]
[1743639336992,6.90364,1807.6,1807.5,0.00829646]
[1743639337194,7.63804,1807.6,1807.5,0.00829646]
[1743639337695,10.84584,1807.6,1807.5,0.00829646]
[1743639338011,1.10705,1807.1,1807.0,1.10707]
[1743639338197,1.10705,1807.1,1806.9,9.0318]
[1743639338198,1.10711,1807.0,1806.9,11.64274]
[1743639338389,5.8515,1807.3,1806.9,10.5356]
[1743639338594,5.8515,1807.3,1807.2,1.10699]
[1743639338793,1.5245,1807.3,1807.2,1.10699]
[1743639338993,1.5245,1807.3,1807.2,2.61079]
[1743639339194,5.43384,1807.5,1807.2,1.5038]
[1743639339401,2.63129,1807.6,1807.3,3.2078]
[1743639339596,1.10681,1807.5,1807.4,2.61063]
[1743639339798,1.10681,1807.5,1807.4,1.5038]
[1743639339999,1.10687,1807.4,1807.3,0.68901871]
[1743639340198,1.10693,1807.3,1807.2,6.93099]
[1743639340392,5.01958,1807.6,1807.2,7.3278]
[1743639340703,1.10693,1807.3,1807.2,7.3278]
[1743639340903,1.10693,1807.3,1807.2,8.43479]
[1743639341095,2.54352,1807.4,1807.3,1.10693]
[1743639341297,0.00829646,1807.8,1807.3,5.9751]
[1743639341596,1.10672,1807.7,1807.6,1.1067]
[1743639341798,1.10672,1807.7,1807.6,2.5281]
[1743639342201,2.54332,1807.7,1807.6,2.5281]
[1743639342597,1.10674,1807.6,1807.5,3.993]
[1743639342803,2.54334,1807.6,1807.5,3.993]
[1743639343000,2.54334,1807.6,1807.5,5.4144]
[1743639343301,2.54334,1807.6,1807.5,3.993]
[1743639343695,2.54334,1807.6,1807.5,3.2078]
[1743639343899,1.10693,1807.3,1807.2,9.0318]
[1743639344106,1.10693,1807.3,1807.2,3.2078]
[1743639344998,1.10705,1807.1,1807.0,1.4643]
[1743639345309,1.10711,1807.0,1806.9,9.0318]
[1743639345608,1.10711,1807.0,1806.9,10.4961]
[1743639345609,2.60151,1807.0,1806.9,10.4961]
[1743639346106,2.60151,1807.0,1806.9,11.60327]
[1743639346306,4.326,1807.3,1806.9,11.18587548]
[1743639346501,1.10699,1807.2,1807.1,4.31485]
[1743639346707,2.60132,1807.4,1807.3,1.10693]
[1743639347209,1.10685,1807.5,1807.4,1.10687]
[1743639347405,2.50295,1807.5,1807.4,1.5001]
[1743639347805,1.10685,1807.5,1807.4,2.60697]
[1743639348508,4.16283,1807.7,1807.6,1.10674]
[1743639348509,2.50282,1807.7,1807.6,1.10674]
[1743639349411,2.50282,1807.7,1807.6,3.2078]
[1743639349615,2.50282,1807.7,1807.6,3.8992512]
[1743639349804,2.50282,1807.7,1807.6,3.2078]
[1743639350006,1.10681,1807.5,1807.4,12.39353]
[1743639350522,1.10681,1807.5,1807.4,5.84e-06]
[1743639351015,1.10681,1807.5,1806.8,4.31501]
[1743639351016,1.10717,1806.9,1806.8,4.31501]
[1743639351212,1.10717,1806.9,1806.8,4.6137]
[1743639351411,1.10717,1806.9,1806.8,3.2078]
[1743639352406,2.76794,1806.9,1806.6,3.2078]
[1743639352606,1.10748,1806.4,1806.3,3.2078]
[1743639352916,1.10748,1806.4,1805.8,5.824]
[1743639352917,1.10772,1806.0,1805.9,3.2078]
[1743639353517,1.10785,1805.8,1805.7,11.84972]
[1743639353813,1.10785,1805.8,1805.7,8.64192]
[1743639354008,3.60785,1805.8,1805.7,7.44322]
[1743639354315,3.60785,1805.8,1805.7,2.14382]
[1743639354316,5.02175,1805.8,1805.7,2.14382]
[1743639354906,5.02175,1805.8,1805.0,32.74998125]
[1743639354907,2.76978,1805.7,1805.0,1.4161]
[1743639355113,1.10824,1805.2,1805.0,1.4161]
[1743639355309,1.10824,1805.2,1805.0,2.52444]
[1743639355515,4.18392,1805.6,1804.9,3.2078]
[1743639355516,1.10834,1805.0,1804.9,3.2078]
[1743639356014,1.10834,1805.0,1804.8,2.52455]
[1743639356216,5.835,1805.2,1804.7,16.24536098]
[1743639356511,2.77061,1805.2,1804.7,16.24536098]
[1743639356711,1.508,1805.1,1804.7,17.35385098]
[1743639357014,1.1084,1804.9,1804.8,1.3763]
[1743639357212,1.10846,1804.8,1804.7,16.24536098]
[1743639357413,1.10846,1804.8,1804.7,13.03756098]
[1743639357612,5.43542,1804.9,1804.7,14.14606098]
[1743639357911,1.10822,1805.2,1805.0,1.10831]
[1743639358104,4.33629646,1805.3,1804.9,3.2078]
[1743639358105,1.10834,1805.0,1804.9,3.2078]
[1743639358909,1.10823,1805.2,1804.9,3.2078]
[1743639359114,1.10834,1805.0,1804.9,4.7228]
[1743639359823,1.10834,1805.0,1804.9,3.2078]
[1743639361917,4.329,1805.0,1804.7,3.2078]
[1743639362112,1.10846,1804.8,1804.7,4.6802]
[1743639363414,1.4797,1804.9,1804.8,1.10846]
[1743639363617,3.21609646,1805.3,1804.7,7.45149]
[1743639363813,1.10829,1805.1,1804.9,3.2078]
[1743639364120,1.10829,1805.1,1805.0,2.58074]
[1743639364414,1.10829,1805.1,1805.0,1.4724]
[1743639364817,0.00829646,1805.3,1805.2,1.10822]
[1743639365019,0.00829646,1805.3,1805.2,4.31602]
[1743639365210,0.00829646,1805.3,1805.2,5.77102]
[1743639365826,1.11644646,1805.3,1805.2,1.455]
[1743639366117,1.10822,1805.2,1805.1,0.7295]
[1743639366327,1.10828,1805.1,1805.0,3.2078]
[1743639366622,2.60988,1805.1,1805.0,3.2078]
[1743639366818,1.5016,1805.1,1805.0,4.31614]
[1743639367124,0.00829646,1805.3,1805.2,1.10822]
[1743639367327,0.00829646,1805.3,1805.2,4.31602]
[1743639367625,1.10782,1805.9,1805.8,1.10782]
[1743639367817,2.60942,1805.9,1805.8,4.31562]
[1743639368621,2.60942,1805.9,1805.8,3.2078]
[1743639369215,2.60942,1805.9,1805.8,4.31565]
[1743639369421,2.60942,1805.9,1805.8,5.69925]
[1743639369623,2.60942,1805.9,1805.8,4.5914]
[1743639370114,2.60942,1805.9,1805.8,5.69925]
[1743639372613,1.10785,1805.8,1805.7,0.00829646]
[1743639372814,2.56675,1805.8,1805.7,0.00829646]
[1743639373521,2.56675,1805.8,1805.7,1.11620646]
[1743639373719,1.10779,1805.9,1805.7,0.00829646]
[1743639373927,2.56669,1805.9,1805.8,3.2078]
[1743639374225,1.4589,1805.9,1805.8,4.3156]
[1743639374816,2.56669,1805.9,1805.8,4.3156]
[1743639375218,0.00829646,1806.0,1805.8,4.3156]
[1743639375219,0.00829646,1806.0,1805.9,1.10779]
[1743639375414,0.00829646,1806.0,1805.9,2.49639]
[1743639375720,1.10757,1806.3,1806.2,1.10758]
[1743639375921,7.09655,1806.6,1806.1,4.5964]
[1743639375922,1.1076,1806.2,1806.1,4.5964]
[1743639376218,1.1076,1806.2,1806.1,5.70406]
[1743639376622,1.10758,1806.3,1806.2,1.10756]
[1743639376818,1.10758,1806.3,1806.2,2.49616]
[1743639376819,2.60367646,1806.3,1806.2,2.49616]
[1743639377219,2.60367646,1806.3,1806.2,1.3886]
[1743639377421,2.60367646,1806.3,1806.2,2.4962]
[1743639377822,1.1076,1806.2,1806.1,4.31542]
[1743639378027,2.5466,1806.2,1806.1,4.31542]
[1743639378324,0.00829646,1806.3,1806.2,1.1076]
[1743639378518,0.00829646,1806.3,1806.2,2.6016]
[1743639378719,1.11583646,1806.3,1806.2,1.494]
[1743639378916,1.11583646,1806.3,1806.2,1.1076]
[1743639379723,1.11583646,1806.3,1806.2,2.6016]
[1743639379924,0.00829646,1806.3,1806.2,2.6016]
[1743639380621,1.11583646,1806.3,1806.2,2.6016]
[1743639380821,0.00829646,1806.3,1806.2,2.6016]
[1743639381322,1.10732,1806.7,1806.6,1.1073]
[1743639382124,2.59082,1806.7,1806.6,1.1073]
[1743639382316,2.76787,1807.0,1806.9,1.10713]
[1743639382317,1.10715,1807.0,1806.9,1.10713]
[1743639382923,1.10715,1807.0,1806.9,2.49043]
[1743639383427,1.10717,1806.9,1806.8,3.21609646]
[1743639383824,1.10717,1806.9,1806.8,4.61729646]
[1743639384024,1.10716,1807.0,1806.9,1.10716]
[1743639384623,1.10717,1806.9,1806.8,5.72447646]
[1743639384828,1.423,1806.9,1806.8,5.72447646]
[1743639385227,2.53017,1806.9,1806.8,3.21609646]
[1743639385630,2.53017,1806.9,1806.8,4.32332646]
[1743639386834,1.423,1806.9,1806.8,4.32332646]
[1743639387028,1.423,1806.9,1806.8,5.81752646]
[1743639387745,2.53017,1806.9,1806.8,5.81752646]
[1743639388032,2.53017,1806.9,1806.8,0.00829646]
[1743639388234,6.85517,1806.9,1806.8,0.00829646]
[1743639389330,5.748,1806.9,1806.8,4.32332646]
[1743639389537,1.423,1806.9,1806.8,4.32332646]
[1743639389834,2.53017,1806.9,1806.8,4.32332646]
[1743639390427,2.53017,1806.9,1806.8,3.21609646]
[1743639390734,2.53017,1806.9,1806.8,1.11552646]
[1743639391139,1.423,1806.9,1806.8,1.11552646]
[1743639391335,1.11539646,1807.1,1807.0,1.10711]
[1743639391535,1.42719646,1807.1,1807.0,4.31491]
[1743639391834,0.00829646,1807.1,1807.0,4.31491]
[1743639392541,1.11534646,1807.1,1807.0,1.10711]
[1743639392836,1.10717,1806.9,1806.8,0.00829646]
[1743639393537,2.49747,1806.9,1806.8,0.00829646]
[1743639394736,0.00829646,1807.1,1807.0,1.10711]
[1743639394938,1.39859646,1807.1,1807.0,4.31491]
[1743639395137,2.50564646,1807.1,1807.0,4.31491]
[1743639395336,1.39859646,1807.1,1807.0,4.31491]
[1743639395532,2.50564646,1807.1,1807.0,4.31491]
[1743639395733,1.39859646,1807.1,1807.0,4.31491]
[1743639397245,0.00829646,1807.1,1807.0,4.31491]
[1743639397443,0.00829646,1807.1,1807.0,5.72081]
[1743639399233,0.7624,1807.6,1807.4,1.10681]
[1743639399439,1.4204,1807.5,1807.4,4.31461]
[1743639400046,2.52721,1807.5,1807.4,4.31461]
[1743639402341,1.4204,1807.5,1807.4,4.31461]
[1743639403141,0.00829646,1807.6,1807.4,3.2078]
[1743639403445,1.10648,1808.1,1808.0,1.10646]
[1743639403639,1.1065,1808.0,1807.9,4.31432]
[1743639404344,1.10647,1808.1,1808.0,1.10646]
[1743639404548,1.11476646,1808.1,1808.0,1.10646]
[1743639405742,0.00829646,1808.1,1808.0,1.10646]
[1743639406246,0.00829646,1808.1,1808.0,8.35906]
[1743639406447,1.5129,1808.5,1808.4,1.10625]
[1743639406742,1.10602,1808.8,1808.7,1.10601]
[1743639406939,1.10602,1808.8,1808.5,2.76547]
[1743639406940,0.8064,1808.9,1808.8,1.10601]
[1743639407340,1.10588,1809.1,1809.0,1.10589]
[1743639408045,1.4528,1809.1,1809.0,1.10589]
[1743639408250,0.00553098,1809.2,1809.1,1.10583]
[1743639408844,1.11130098,1809.2,1809.0,10.5337]
[1743639409047,1.11133098,1809.2,1809.0,10.5337]
[1743639409245,0.00553098,1809.2,1809.1,1.10583]
[1743639411046,1.1056,1809.5,1809.4,1.10564]
[1743639412155,2.57147,1809.6,1809.4,2.57004]
[1743639412356,1.4659,1809.6,1809.4,2.56998]
[1743639412560,1.4659,1809.6,1809.4,1.4644]
[1743639412561,1.10558,1809.5,1809.4,1.4644]
[1743639412852,1.10568,1809.4,1809.1,4.7368]
[1743639413068,1.4659,1809.4,1809.3,4.3135]
[1743639413252,2.57154,1809.4,1809.3,4.3135]
[1743639413449,2.57154,1809.4,1809.3,3.2078]
[1743639413850,2.57154,1809.4,1809.3,4.3135]
[1743639414150,1.4659,1809.4,1809.3,4.3135]
[1743639414553,7.08253,1809.8,1809.3,3.2078]
[1743639414856,1.10562,1809.5,1809.4,1.10563]
[1743639415557,1.10556,1809.6,1809.5,1.10556]
[1743639416457,1.5089,1809.7,1809.6,1.10552]
[1743639417158,1.5089,1809.7,1809.6,2.57572]
[1743639417953,4.316,1810.3,1809.7,2.76363]
[1743639418150,1.10524,1810.1,1810.0,1.10526]
[1743639418354,1.10528,1810.0,1809.9,4.31311]
[1743639418560,2.52308,1810.0,1809.9,4.31311]
[1743639418958,1.4178,1810.0,1809.9,4.31311]
[1743639419162,0.8044,1810.5,1809.9,3.2078]
[1743639419364,2.52289,1810.4,1810.1,3.2078]
[1743639419659,2.52288,1810.4,1810.2,1.10511]
[1743639419964,1.4178,1810.4,1810.3,1.10509]
[1743639420257,8.3277,1810.7,1810.3,3.2078]
[1743639420258,3.2078,1810.7,1810.3,3.2078]
[1743639420464,1.477,1810.4,1810.2,7.2084]
[1743639420658,2.58205,1810.4,1810.3,1.10509]
[1743639420864,1.477,1810.4,1810.3,1.10509]
[1743639421063,1.477,1810.4,1810.3,2.48949]
[1743639422266,2.58203,1810.4,1810.3,1.3844]
[1743639422561,1.477,1810.4,1810.3,1.10509]
[1743639422768,2.58203,1810.4,1810.3,2.48949]
[1743639422959,1.10509,1810.3,1810.2,3.2078]
[1743639423161,1.10509,1810.3,1810.0,5.824]
[1743639423162,1.10522,1810.1,1810.0,11.57662]
[1743639423465,1.10522,1810.1,1810.0,3.2078]
[1743639423662,1.10522,1810.1,1810.0,4.31308]
[1743639423860,1.10519,1810.2,1810.1,1.10519]
[1743639424061,1.4352,1810.3,1810.0,4.6474]
[1743639424262,1.10522,1810.1,1810.0,5.75263]
[1743639424463,1.4352,1810.3,1810.1,1.1052]
[1743639424765,1.4352,1810.3,1810.2,4.31295]
[1743639425067,1.105,1810.5,1810.4,1.10503]
[1743639425262,2.5402,1810.5,1810.4,1.10503]
[1743639425460,2.5402,1810.5,1810.4,4.31283]
[1743639425961,1.10496,1810.6,1810.5,1.10495]
[1743639426161,1.10496,1810.6,1810.5,2.61155]
[1743639426360,1.10496,1810.6,1810.5,1.5066]
[1743639426862,1.10509,1810.3,1810.2,9.0318]
[1743639427065,1.10509,1810.3,1810.2,5.824]
[1743639427562,4.22988,1810.3,1809.9,6.60439]
[1743639427768,4.22988,1810.3,1809.9,6.60438]
[1743639427971,1.10525,1810.1,1809.9,5.4991]
[1743639428161,1.4671,1810.0,1809.9,6.6044]
[1743639428357,1.4671,1810.0,1809.9,4.3131]
[1743639428358,2.57238,1810.0,1809.9,4.3131]
[1743639428561,2.57238,1810.0,1809.9,3.2078]
[1743639428762,1.10534,1809.9,1809.8,0.00829646]
[1743639428962,2.57244,1809.9,1809.8,0.00829646]
[1743639429561,1.4671,1809.9,1809.8,4.32149646]
[1743639430068,2.76276,1810.3,1809.8,4.32149646]
[1743639430069,1.10518,1810.2,1809.8,3.21609646]
[1743639430268,2.51645,1810.2,1810.1,1.10517]
[1743639430467,1.4113,1810.2,1810.1,1.10517]
[1743639431063,2.51645,1810.2,1810.1,1.10517]
[1743639431665,1.10522,1810.1,1810.0,4.31304]
[1743639431970,2.51652,1810.1,1810.0,4.31304]
[1743639432667,1.4113,1810.1,1810.0,4.31304]
[1743639432871,2.51652,1810.1,1810.0,4.31304]
[1743639433060,2.51652,1810.1,1810.0,3.2078]
[1743639433261,1.10528,1810.0,1809.9,1.10529]
[1743639433468,2.60708,1810.0,1809.9,4.31309]
[1743639433667,2.60708,1810.0,1809.9,3.2078]
[1743639433870,6.91808,1810.0,1809.8,0.00829646]
[1743639434167,1.10577,1809.2,1809.1,5.824]
[1743639434368,1.10582,1809.2,1809.0,1.10589]
[1743639434570,5.9163,1809.4,1808.9,5.97268]
[1743639434770,7.5188,1809.6,1809.1,3.2078]
[1743639434960,8.3284,1809.8,1809.3,5.97207]
[1743639435160,1.10555,1809.6,1809.5,1.10556]
[1743639436371,0.00829646,1809.7,1809.4,1.3942]
[1743639436372,1.10558,1809.5,1809.4,1.3942]
[1743639436673,1.1057,1809.3,1809.2,0.00829646]
[1743639437074,1.10562,1809.5,1809.2,0.00829646]
[1743639437270,1.10562,1809.5,1809.4,1.1056]
[1743639437576,1.10562,1809.5,1809.2,4.63519646]
[1743639437577,1.1057,1809.3,1809.2,2.53314646]
[1743639438282,2.52549,1809.4,1809.3,1.1057]
[1743639439471,1.4198,1809.4,1809.2,2.53311646]
[1743639439674,1.4198,1809.4,1809.2,2.53312646]
[1743639439869,2.52548,1809.4,1809.3,1.1057]
[1743639440772,2.52548,1809.4,1809.2,1.42739646]
[1743639440773,1.1057,1809.3,1809.2,0.00829646]
[1743639440978,2.5011,1809.3,1809.2,0.00829646]
[1743639441277,3.3083,1809.3,1809.2,0.00829646]
[1743639442777,3.3083,1809.3,1809.2,1.11406646]
[1743639442975,2.2026,1809.3,1809.2,1.11406646]
[1743639443277,5.41663,1809.5,1809.4,1.10564]
[1743639443465,6.91353,1809.5,1809.4,1.10564]
[1743639443867,1.10564,1809.4,1809.3,2.49536]
[1743639444174,2.60254,1809.4,1809.3,2.49536]
[1743639445672,1.4969,1809.4,1809.3,2.49536]
[1743639445979,1.10564,1809.4,1809.3,2.49536]
[1743639447275,2.59064,1809.4,1809.3,2.49536]
[1743639447676,2.59064,1809.4,1809.3,1.3897]
[1743639447878,2.59064,1809.4,1809.3,2.4954]
[1743639448179,1.1057,1809.3,1809.2,0.00829646]
[1743639448384,2.5291,1809.3,1809.2,0.00829646]
[1743639448774,1.10607,1808.7,1808.6,5.824]
[1743639448977,1.10607,1808.7,1808.4,3.2078]
[1743639448978,1.10619,1808.5,1808.4,3.2078]
[1743639449174,4.311,1809.0,1808.4,4.7039]
[1743639449175,7.07575,1809.0,1808.4,4.7039]
[1743639449379,5.41691,1809.0,1808.9,1.10595]
[1743639450083,1.10591,1809.0,1808.9,1.10595]
[1743639450283,1.10589,1809.0,1808.9,1.10595]
[1743639451184,1.11416646,1809.1,1809.0,1.10589]
[1743639452080,0.00829646,1809.1,1809.0,1.10589]
[1743639452286,1.11412646,1809.1,1809.0,1.10589]
[1743639453183,0.00829646,1809.1,1809.0,1.10589]
[1743639454084,0.00829646,1809.1,1809.0,4.31369]
[1743639454787,0.00829646,1809.1,1809.0,5.78699]
[1743639458596,0.00829646,1809.1,1809.0,1.4733]
[1743639458597,1.11412646,1809.1,1809.0,1.4733]
[1743639458900,1.11412646,1809.1,1809.0,2.57919]
[1743639459702,0.00829646,1809.1,1809.0,2.57919]
[1743639461295,1.10595,1808.9,1808.8,0.00829646]
[1743639461501,1.10625,1808.5,1808.4,1.10621]
[1743639462003,1.10625,1808.5,1808.4,2.59581]
[1743639462300,4.31388,1808.7,1808.6,1.10613]
[1743639462697,2.56826,1808.8,1808.7,1.10607]
[1743639462997,2.56821,1808.8,1808.7,1.10607]
[1743639463206,1.85504,1809.0,1808.9,1.10595]
[1743639463403,5.12059646,1809.1,1809.0,1.10589]
[1743639463404,3.39465646,1809.1,1809.0,1.10589]
[1743639464701,1.10595,1808.9,1808.8,2.54367]
[1743639465105,1.10595,1808.9,1808.8,1.4377]
[1743639465599,1.10612,1808.7,1808.6,1.10613]
[1743639465807,2.50666,1808.8,1808.7,1.10607]
[1743639466203,1.10595,1809.0,1808.9,1.10589]
[1743639466693,1.10594,1809.0,1808.9,1.1059]
[1743639467004,0.00829646,1809.1,1809.0,1.10589]
[1743639467199,1.10561,1809.5,1809.4,1.10558]
[1743639467596,1.10555,1809.6,1809.5,1.10558]
[1743639467900,1.10536,1809.9,1809.8,1.1054]
[1743639468605,1.1054,1809.8,1809.7,1.11370646]
[1743639468904,1.11360646,1810.0,1809.9,1.10534]
[1743639469106,1.10537,1809.9,1809.8,1.10536]
[1743639469502,1.1054,1809.8,1809.7,2.50110646]
[1743639470008,1.1054,1809.8,1809.7,1.39569646]
[1743639470303,1.1054,1809.8,1809.7,0.00829646]
[1743639470707,5.8363,1809.8,1809.7,0.00829646]
[1743639471597,8.3363,1809.8,1809.7,0.00829646]
[1743639471905,1.10555,1809.6,1809.5,1.10555]
[1743639472203,4.7309,1809.8,1809.4,4.1971]
[1743639472410,1.10547,1809.7,1809.6,1.10547]
[1743639472597,2.53727,1809.7,1809.6,1.10547]
[1743639472801,1.4318,1809.7,1809.6,1.10547]
[1743639473001,1.4318,1809.7,1809.5,0.00829646]
[1743639473002,1.10552,1809.6,1809.5,0.00829646]
[1743639473203,5.09282,1809.6,1809.5,0.00829646]
[1743639473404,1.88502,1809.6,1809.5,0.00829646]
[1743639473600,5.09282,1809.6,1809.5,0.00829646]
[1743639473802,2.5373,1809.7,1809.6,1.10552]